[Event "AI Cup Div-3 2023"]
[Site "Online"]
[Date "2023.09.26"]
[Round "52.2"]
[White "Kravtsiv, Martyn"]
[Black "Esipenko, Andrey"]
[Result "1-0"]
[Annotator "ChessBase"]
[ECO "C58"]
[WhiteElo "2598"]
[BlackElo "2683"]
[PlyCount "87"]
[EventDate "2023.09.18"]
[EventType "k.o."]
[EventCountry "NET"]
[SourceTitle "playchess.com"]
[Source "ChessBase"]
[SourceQuality "1"]
[TimeControl "900+3"]

1. e4 {[%emt 0:00:07]} e5 {[%emt 0:00:06]} 2. Nf3 {[%emt 0:00:02]} Nc6 {[%emt 0:00:02]} 3. Bc4 {[%emt 0:00:04]} Nf6 {[%emt 0:00:03]} 4. Ng5 {[%emt 0:00:02]} d5 {[%emt 0:00:06]} 5. exd5 {[%emt 0:00:01]} Na5 {[%emt 0:00:08]} 6. Bb5+ {[%emt 0:00:02]} Bd7 {[%emt 0:00:04]} 7. Qe2 {[%emt 0:00:09]} Be7 {[%emt 0:00:02]} 8. Nf3 {[%emt 0:01:56]} Nxd5 {[%emt 0:00:09]} 9. Bxd7+ {[%emt 0:00:09]} Qxd7 {[%emt 0:00:03]} 10. Nxe5 {[%emt 0:00:01]} Qe6 {[%emt 0:00:03]} 11. Nf3 {[%emt 0:00:09]} Qg6 {[%emt 0:00:08]} 12. d4 {[%emt 0:00:02]} Qxg2 {[%emt 0:00:43]} 13. Rg1 {[%emt 0:00:03]} Qh3 {[%emt 0:00:01]} 14. Rg3 {[%emt 0:00:01]} Qe6 {[%emt 0:00:10]} 15. Qxe6 {[%emt 0:01:18]} fxe6 {[%emt 0:00:04]} 16. Rxg7 {[%emt 0:01:22]} O-O-O {[%emt 0:00:07]} 17. Bg5 {[%emt 0:03:36]} Bxg5 {[%emt 0:04:05]} 18. Rxg5 {[%emt 0:00:03]} Nc4 {[%emt 0:01:16]} 19. b3 {[%emt 0:00:38]} Nd6 {[%emt 0:00:01]} 20. Nbd2 {[%emt 0:00:12]} Nf5 {[%emt 0:01:48]} 21. Ne4 {[%emt 0:01:49]} Rhf8 {[%emt 0:01:25]} 22. O-O-O {[%emt 0:00:13]} Nfe3 {[%emt 0:00:07]} 23. fxe3 {[%emt 0:00:01]} Rxf3 {[%emt 0:00:00]} 24. Re1 {[%emt 0:00:55]} Nxe3 {[%emt 0:02:27]} 25. Nc5 {[%emt 0:00:27]} b6 {[%emt 0:00:02]} 26. Nxe6 {[%emt 0:00:08]} Rd6 {[%emt 0:00:02]} 27. Rg8+ {[%emt 0:00:19]} Kb7 {[%emt 0:00:01]} 28. Ng5 {[%emt 0:00:08]} Rf1 {[%emt 0:00:03]} 29. Rxf1 {[%emt 0:00:05]} Nxf1 {[%emt 0:00:00]} 30. h3 {[%emt 0:00:42]} Rxd4 {[%emt 0:00:16]} 31. Nxh7 {[%emt 0:00:03]} Ne3 {[%emt 0:01:15]} 32. Rg1 {[%emt 0:00:04]} Rd5 {[%emt 0:00:05]} 33. Nf6 {[%emt 0:00:08]} Rc5 {[%emt 0:00:22]} 34. c4 {[%emt 0:00:07]} b5 {[%emt 0:00:43]} 35. Kd2 {[%emt 0:00:07]} Nf5 {[%emt 0:00:12]} 36. Rg5 {[%emt 0:00:34]} bxc4 {[%emt 0:00:03]} 37. bxc4 {[%emt 0:00:03]} Ra5 {[%emt 0:00:03]} 38. a4 {[%emt 0:00:12]} Re5 {[%emt 0:00:25]} 39. Nd7 {[%emt 0:00:16]} Ra5 {[%emt 0:00:06]} 40. Kc3 {[%emt 0:00:08]} Kc8 {[%emt 0:00:14]} 41. Nf6 {[%emt 0:00:29]} Kd8 {[%emt 0:00:00]} 42. h4 {[%emt 0:00:02]} Ke7 {[%emt 0:00:01]} 43. Nd5+ {[%emt 0:00:01]} Ke6 {[%emt 0:00:02]} 44. Kb4 {[%emt 0:00:02]} 1-0

[Event "AI Cup Div-3 2023"]
[Site "Online"]
[Date "2023.09.26"]
[Round "52.2"]
[White "Kovalev, Vladislav"]
[Black "Paravyan, David"]
[Result "0-1"]
[Annotator "ChessBase"]
[ECO "C70"]
[WhiteElo "2582"]
[BlackElo "2599"]
[PlyCount "64"]
[EventDate "2023.09.18"]
[EventType "k.o."]
[EventCountry "NET"]
[SourceTitle "playchess.com"]
[Source "ChessBase"]
[SourceQuality "1"]
[TimeControl "900+3"]

1. e4 {[%emt 0:00:03]} e5 {[%emt 0:00:12]} 2. Nf3 {[%emt 0:00:01]} Nc6 {[%emt 0:00:02]} 3. Bb5 {[%emt 0:00:23]} a6 {[%emt 0:00:03]} 4. Ba4 {[%emt 0:00:01]} Nge7 {[%emt 0:00:06]} 5. c3 {[%emt 0:00:16]} f6 {[%emt 0:00:03]} 6. d4 {[%emt 0:00:14]} d5 {[%emt 0:00:01]} 7. dxe5 {[%emt 0:00:39]} dxe4 {[%emt 0:00:05]} 8. Qxd8+ {[%emt 0:00:01]} Kxd8 {[%emt 0:00:00]} 9. exf6 {[%emt 0:00:01]} gxf6 {[%emt 0:00:15]} 10. Nh4 {[%emt 0:01:02]} Ng6 {[%emt 0:00:21]} 11. Nxg6 {[%emt 0:00:04]} hxg6 {[%emt 0:00:00]} 12. Bf4 {[%emt 0:00:40]} g5 {[%emt 0:00:16]} 13. Be3 {[%emt 0:00:08]} Ne5 {[%emt 0:00:56]} 14. Bc2 {[%emt 0:00:10]} Ng4 {[%emt 0:00:33]} 15. Bxe4 {[%emt 0:00:16]} Nxe3 {[%emt 0:00:10]} 16. fxe3 {[%emt 0:00:00]} f5 {[%emt 0:01:50]} 17. Bc2 {[%emt 0:00:30]} Bc5 {[%emt 0:00:40]} 18. Nd2 {[%emt 0:00:09]} Bxe3 {[%emt 0:00:19]} 19. Nc4 {[%emt 0:00:21]} Bf4 {[%emt 0:00:02]} 20. Kf2 {[%emt 0:01:58]} Be6 {[%emt 0:00:09]} 21. g3 {[%emt 0:00:35]} Bxc4 {[%emt 0:00:30]} 22. gxf4 {[%emt 0:00:03]} gxf4 {[%emt 0:00:01]} 23. Rad1+ {[%emt 0:00:14]} Ke7 {[%emt 0:00:03]} 24. Rd4 {[%emt 0:00:13]} Rad8 {[%emt 0:00:39]} 25. Rxc4 {[%emt 0:01:54]} Rd2+ {[%emt 0:00:02]} 26. Kf3 {[%emt 0:00:00]} Rxc2 {[%emt 0:00:06]} 27. Rxc7+ {[%emt 0:00:09]} Kf6 {[%emt 0:00:02]} 28. h4 {[%emt 0:00:27]} Rd8 {[%emt 0:00:11]} 29. Kxf4 {[%emt 0:01:08]} Rd3 {[%emt 0:00:02]} 30. Rf1 {[%emt 0:00:20]} Rg2 {[%emt 0:00:06]} 31. Rf7+ {[%emt 0:01:10]} Kxf7 {[%emt 0:00:02]} 32. Kxf5 {[%emt 0:00:00]} Rdd2 {[%emt 0:00:01]} 0-1

[Event "AI Cup Div-3 2023"]
[Site "Online"]
[Date "2023.09.26"]
[Round "52.2"]
[White "Beerdsen, Thomas"]
[Black "Rakhmanov, Aleksandr"]
[Result "1-0"]
[Annotator "ChessBase"]
[ECO "B29"]
[WhiteElo "2511"]
[BlackElo "2614"]
[PlyCount "75"]
[EventDate "2023.09.18"]
[EventType "k.o."]
[EventCountry "NET"]
[SourceTitle "playchess.com"]
[Source "ChessBase"]
[SourceQuality "1"]
[TimeControl "900+3"]

1. e4 {[%emt 0:00:03]} c5 {[%emt 0:00:07]} 2. Nf3 {[%emt 0:00:02]} Nf6 {[%emt 0:00:01]} 3. e5 {[%emt 0:00:06]} Nd5 {[%emt 0:00:01]} 4. Nc3 {[%emt 0:00:00]} Nxc3 {[%emt 0:00:04]} 5. dxc3 {[%emt 0:00:03]} Nc6 {[%emt 0:00:01]} 6. Bf4 {[%emt 0:00:02]} Qc7 {[%emt 0:00:00]} 7. Qd2 {[%emt 0:00:57]} e6 {[%emt 0:00:01]} 8. h4 {[%emt 0:00:11]} h6 {[%emt 0:00:02]} 9. h5 {[%emt 0:01:04]} b6 {[%emt 0:00:05]} 10. Rh3 {[%emt 0:01:06]} Bb7 {[%emt 0:00:13]} 11. O-O-O {[%emt 0:00:08]} a6 {[%emt 0:00:18]} 12. Bd3 {[%emt 0:00:44]} b5 {[%emt 0:00:06]} 13. Be4 {[%emt 0:00:07]} c4 {[%emt 0:00:13]} 14. g4 {[%emt 0:01:11]} Ne7 {[%emt 0:00:07]} 15. Qe3 {[%emt 0:00:39]} Bxe4 {[%emt 0:00:33]} 16. Qxe4 {[%emt 0:00:02]} Qc6 {[%emt 0:00:01]} 17. Qxc6 {[%emt 0:01:00]} Nxc6 {[%emt 0:02:28]} 18. Nd2 {[%emt 0:00:44]} Ne7 {[%emt 0:02:19]} 19. Ne4 {[%emt 0:00:14]} Nd5 {[%emt 0:00:00]} 20. Bh2 {[%emt 0:00:38]} Be7 {[%emt 0:00:10]} 21. f4 {[%emt 0:00:08]} O-O-O {[%emt 0:00:31]} 22. f5 {[%emt 0:00:23]} Kb7 {[%emt 0:00:08]} 23. Rf3 {[%emt 0:00:03]} Kc6 {[%emt 0:00:21]} 24. Rd4 {[%emt 0:00:22]} Bc5 {[%emt 0:02:15]} 25. Nxc5 {[%emt 0:00:42]} Kxc5 {[%emt 0:00:00]} 26. Bg1 {[%emt 0:00:13]} Kc6 {[%emt 0:00:20]} 27. b3 {[%emt 0:00:25]} cxb3 {[%emt 0:01:04]} 28. c4 {[%emt 0:00:11]} Nc7 {[%emt 0:01:25]} 29. Rd6+ {[%emt 0:01:02]} Kb7 {[%emt 0:00:02]} 30. Rxb3 {[%emt 0:00:23]} exf5 {[%emt 0:00:09]} 31. cxb5 {[%emt 0:00:25]} axb5 {[%emt 0:00:11]} 32. Rb6+ {[%emt 0:00:20]} Kc8 {[%emt 0:00:01]} 33. Rc3 {[%emt 0:00:47]} Rhe8 {[%emt 0:00:44]} 34. Bc5 {[%emt 0:00:48]} d5 {[%emt 0:01:14]} 35. Bd6 {[%emt 0:00:04]} Rd7 {[%emt 0:00:09]} 36. gxf5 {[%emt 0:00:16]} d4 {[%emt 0:00:19]} 37. Rc5 {[%emt 0:00:08]} Red8 {[%emt 0:00:09]} 38. Rbc6 {[%emt 0:00:11]} 1-0

[Event "AI Cup Div-3 2023"]
[Site "Online"]
[Date "2023.09.26"]
[Round "52.3"]
[White "Matlakov, Maxim"]
[Black "Kramnik, Vladimir"]
[Result "1/2-1/2"]
[Annotator "TA"]
[ECO "E11"]
[WhiteElo "2674"]
[BlackElo "2753"]
[PlyCount "131"]
[EventDate "2023.09.18"]
[EventType "k.o."]
[EventCountry "NET"]
[SourceTitle "playchess.com"]
[Source "ChessBase"]
[SourceQuality "1"]
[TimeControl "900+3"]

{[%evp 11,131,13,13,12,4,-15,26,27,38,23,38,0,0,-20,-16,-36,-25,-37,0,0,0,0,95,83,106,20,22,29,24,35,27,26,23,15,42,16,0,0,0,0,0,-53,12,0,0,0,0,-21,-26,-25,-18,-18,-18,-18,-18,-18,-18,-18,-18,-25,-25,-25,-25,-67,-25,-41,-41,-41,-25,-25,-25,-25,-25,-25,-25,-33,-32,-41,-41,-41,-41,-41,0,-49,-30,-30,0,0,0,0,0,0,0,0,0,-4,0,0,0,0,0,0,0,0,0,0,0,-197,0,0,0,0,0,0,0,0,0,0,0,0,0,0]} 1. d4 {[%emt 0:00:12]} Nf6 {[%emt 0:04:08]} 2. c4 {[%emt 0:00:05]} e6 {[%emt 0:00:04]} 3. g3 {[%emt 0:00:06]} Bb4+ {[%emt 0:00:07]} 4. Bd2 {[%emt 0:00:06]} Be7 {[%emt 0:00:04]} 5. Bg2 {[%emt 0:00:04]} d5 {[%emt 0:00:04]} 6. Nf3 {[%emt 0:00:07]} O-O {[%emt 0:00:03]} 7. Qc2 {[%emt 0:00:13] E11: Bogo-Indian.} c6 {[%emt 0:00:07]} 8. h4 {[%emt 0:00:20]} Ne4 {[%emt 0:01:35]} 9. Bf4 {[%emt 0:00:07] White has an edge.} f5 {[%emt 0:00:37]} 10. Nc3 {[%emt 0:00:29]} Nd7 {[%emt 0:00:09]} 11. O-O {[%emt 0:00:22]} h6 {[%emt 0:00:18] [#]} 12. Be3 $146 {[%emt 0:03:05]} ({Predecessor:} 12. Nxe4 fxe4 13. Ne5 Nxe5 14. Bxe5 Bf6 15. Rad1 Qe7 16. Bxf6 gxf6 17. e3 f5 18. Rb1 {1-0 Mishra,A (2585)-Cuartas,J (2530) ESP-chT CECLUB Div1 2023 (3.1)}) 12... Bd6 {[%emt 0:00:11]} 13. Rad1 {[%emt 0:00:13]} Qe8 {[%emt 0:00:14]} (13... Nxc3 {simplifies} 14. bxc3 b6 15. cxd5 cxd5 16. c4 Bb7) 14. Qc1 {[%emt 0:00:11]} Qh5 {[%emt 0:01:06]} (14... Nxc3 {simplifies} 15. bxc3 b6 16. Bf4 Bxf4 17. Qxf4 Ba6) 15. Bf4 {[%emt 0:00:39]} Be7 {[%emt 0:00:09]} 16. Ne5 {[%emt 0:01:03]} g5 {[%emt 0:00:12]} (16... Nxc3 $11 {keeps the balance.} 17. Qxc3 Nxe5 18. Bxe5 Qxe2) 17. Bf3 $16 {[%emt 0:00:27]} Qe8 {[%emt 0:00:05]} 18. Nxd7 {[%emt 0:01:10]} (18. hxg5 $16 hxg5 19. Bxe4) 18... Bxd7 $11 {[%emt 0:00:06]} 19. hxg5 {[%emt 0:00:04]} hxg5 {[%emt 0:00:06]} 20. Be5 {[%emt 0:00:03]} Qg6 {[%emt 0:00:41]} 21. Bxe4 {[%emt 0:01:02]} fxe4 {[%emt 0:00:07]} 22. Kg2 {[%emt 0:00:12]} Bf6 {[%emt 0:00:51]} 23. Bxf6 {[%emt 0:00:34]} (23. Qe3 $5 {[%cal Re5d6]}) 23... Rxf6 {[%emt 0:00:04]} 24. Rh1 {[%emt 0:00:12]} Raf8 {[%emt 0:00:12]} ({Don't do} 24... Qf5 25. Rdf1 $14) 25. Rdf1 {[%emt 0:00:05]} c5 {[%emt 0:00:37]} 26. Qe3 {[%emt 0:00:14]} ({Better is} 26. Qd1 $11) 26... Bc6 {[%emt 0:00:32]} (26... Rf5 $1 $15 27. dxc5 Qf6) 27. cxd5 {[%emt 0:01:06]} exd5 {[%emt 0:00:04] [#] ...Qg7 would be deadly.} 28. Kg1 {[%emt 0:01:17]} Qg7 {[%emt 0:00:04]} 29. Rh2 {[%emt 0:00:24]} ({Much weaker is} 29. dxc5 Rf5 30. Nd1 d4 31. Qb3+ Bd5 $17) (29. Rh5 $5) 29... Rh6 {[%emt 0:00:25]} 30. Rxh6 {[%emt 0:00:28]} cxd4 {[%emt 0:00:15]} 31. Rg6 $1 {[%emt 0:00:11]} dxe3 {[%emt 0:00:08]} 32. Rxg7+ {[%emt 0:00:04]} Kxg7 {[%emt 0:00:04]} 33. fxe3 {[%emt 0:00:04]} Rxf1+ {[%emt 0:00:13]} 34. Kxf1 {[%emt 0:00:03][%mdl 4096] Endgame KB-KN} Kf6 {[%emt 0:00:04]} 35. Nd1 {[%emt 0:00:14]} Ke5 {[%emt 0:00:07]} 36. Ke1 {[%emt 0:00:08]} a5 {[%emt 0:00:17]} 37. Kd2 {[%emt 0:00:05]} Bb5 {[%emt 0:00:05]} 38. Nf2 {[%emt 0:00:08]} Kf5 {[%emt 0:00:04]} 39. Ke1 {[%emt 0:00:18]} Bc4 {[%emt 0:00:09]} 40. b3 {[%emt 0:00:05]} Bb5 {[%emt 0:00:05]} 41. Nd1 {[%emt 0:00:04]} Ke5 {[%emt 0:00:09]} 42. Kd2 {[%emt 0:00:05]} Bd7 {[%emt 0:00:17]} 43. Nc3 {[%emt 0:00:04]} Bc6 {[%emt 0:00:10]} 44. a3 {[%emt 0:00:04]} b6 {[%emt 0:00:16]} 45. Nd1 {[%emt 0:00:04]} Bb5 {[%emt 0:00:06]} 46. Nc3 {[%emt 0:00:04]} Bc6 {[%emt 0:00:06]} 47. b4 {[%emt 0:00:04]} (47. Nd1 $11) 47... axb4 {[%emt 0:00:05]} 48. axb4 {[%emt 0:00:03]} d4 {[%emt 0:00:15]} 49. Nd1 {[%emt 0:00:05]} Bb5 {[%emt 0:00:08]} 50. Nf2 {[%emt 0:00:07]} Bd7 {[%emt 0:00:09]} 51. Nd1 {[%emt 0:00:07]} Bb5 {[%emt 0:00:07]} 52. exd4+ {[%emt 0:00:05]} Kxd4 {[%emt 0:00:05]} 53. Ne3 {[%emt 0:00:03]} Bd7 {[%emt 0:00:11]} 54. Nc2+ {[%emt 0:00:06]} Kc4 {[%emt 0:00:04]} 55. Ke3 {[%emt 0:00:04]} Ba4 {[%emt 0:00:11]} 56. Nd4 {[%emt 0:00:04]} Kxb4 {[%emt 0:00:04]} 57. Kxe4 {[%emt 0:00:04]} Kc3 {[%emt 0:00:04] White must now prevent ...g4.} 58. Ne6 {[%emt 0:00:09]} b5 {[%emt 0:00:06]} 59. Nc5 $2 {[%emt 0:00:03] [#]} (59. Nc7 $1 $11) 59... Bc2+ $2 {[%emt 0:00:05]} (59... Kc4 $1 $19 60. Na6 Bd1) 60. Kd5 {[%emt 0:00:04] The position is equal.} b4 {[%emt 0:00:04] Strongly threatening ...Bg6.} 61. e4 {[%emt 0:00:04]} b3 {[%emt 0:00:07]} 62. Na4+ {[%emt 0:00:03]} Kb4 {[%emt 0:00:04]} 63. Nb2 {[%emt 0:00:04]} Kc3 {[%emt 0:00:04]} 64. Na4+ {[%emt 0:00:03]} Kb4 {[%emt 0:00:04]} 65. Nb2 {[%emt 0:00:04]} Kc3 {[%emt 0:00:04]} (65... Ka3 $5 66. Nc4+ $8 Kb4 67. Nb2 $11) 66. Na4+ {[%emt 0:00:04] Weighted Error Value: White=0.15 (very precise) /Black=0.13 (very precise)} 1/2-1/2

[Event "AI Cup Div-3 2023"]
[Site "Online"]
[Date "2023.09.26"]
[Round "52.3"]
[White "Guseinov, Gadir"]
[Black "Muradli, Mahammad"]
[Result "0-1"]
[Annotator "ChessBase"]
[ECO "B23"]
[WhiteElo "2636"]
[BlackElo "2550"]
[PlyCount "66"]
[EventDate "2023.09.18"]
[EventType "k.o."]
[EventCountry "NET"]
[SourceTitle "playchess.com"]
[Source "ChessBase"]
[SourceQuality "1"]
[TimeControl "900+3"]

1. e4 {[%emt 0:00:07]} c5 {[%emt 0:03:57]} 2. Nc3 {[%emt 0:00:04]} a6 {[%emt 0:00:04]} 3. g3 {[%emt 0:00:08]} b5 {[%emt 0:00:04]} 4. Bg2 {[%emt 0:00:03]} Bb7 {[%emt 0:00:03]} 5. Nh3 {[%emt 0:00:06]} g6 {[%emt 0:00:12]} 6. O-O {[%emt 0:00:06]} Bg7 {[%emt 0:00:04]} 7. d3 {[%emt 0:00:03]} Nc6 {[%emt 0:00:13]} 8. f4 {[%emt 0:00:05]} d6 {[%emt 0:00:16]} 9. Kh1 {[%emt 0:00:43]} b4 {[%emt 0:00:35]} 10. Na4 {[%emt 0:00:18]} Qa5 {[%emt 0:01:23]} 11. c3 {[%emt 0:00:09]} Nh6 {[%emt 0:00:39]} 12. Be3 {[%emt 0:01:44]} O-O {[%emt 0:00:09]} 13. d4 {[%emt 0:00:04]} bxc3 {[%emt 0:00:40]} 14. bxc3 {[%emt 0:00:20]} cxd4 {[%emt 0:00:04]} 15. cxd4 {[%emt 0:00:05]} Rab8 {[%emt 0:00:36]} 16. Rc1 {[%emt 0:00:27]} Rfc8 {[%emt 0:00:25]} 17. Nf2 {[%emt 0:01:30]} Nb4 {[%emt 0:00:33]} 18. a3 {[%emt 0:00:36]} Bc6 {[%emt 0:00:42]} 19. Nc3 {[%emt 0:02:11]} Qxa3 {[%emt 0:00:07]} 20. f5 {[%emt 0:00:08]} Nxf5 {[%emt 0:00:14]} 21. Ng4 {[%emt 0:00:35]} Nxe3 {[%emt 0:00:40]} 22. Nxe3 {[%emt 0:00:03]} Na2 {[%emt 0:00:15]} 23. Ncd5 {[%emt 0:00:21]} Nxc1 {[%emt 0:00:36]} 24. Nxe7+ {[%emt 0:00:11]} Kh8 {[%emt 0:00:05]} 25. Nc4 {[%emt 0:00:12]} Qb4 {[%emt 0:00:20]} 26. Qxc1 {[%emt 0:00:36]} Bb7 {[%emt 0:00:27]} 27. Nxc8 {[%emt 0:00:16]} Rxc8 {[%emt 0:00:03]} 28. Qf4 {[%emt 0:00:10]} Qxc4 {[%emt 0:00:12]} 29. d5 {[%emt 0:00:04]} Qc7 {[%emt 0:00:16]} 30. h4 {[%emt 0:00:18]} Be5 {[%emt 0:00:09]} 31. Qf3 {[%emt 0:00:04]} h5 {[%emt 0:00:07]} 32. g4 {[%emt 0:00:04]} hxg4 {[%emt 0:00:03]} 33. Qxg4 {[%emt 0:00:03]} Kg7 {[%emt 0:00:04]} 0-1

[Event "AI Cup Div-3 2023"]
[Site "Online"]
[Date "2023.09.26"]
[Round "52.3"]
[White "Vaibhav, Suri"]
[Black "Demchenko, Anton"]
[Result "0-1"]
[Annotator "ChessBase"]
[ECO "A21"]
[WhiteElo "2588"]
[BlackElo "2608"]
[PlyCount "136"]
[EventDate "2023.09.18"]
[EventType "k.o."]
[EventCountry "NET"]
[SourceTitle "playchess.com"]
[Source "ChessBase"]
[SourceQuality "1"]
[TimeControl "900+3"]

1. d4 {[%emt 0:00:06]} Nf6 {[%emt 0:00:07]} 2. c4 {[%emt 0:00:07]} d6 {[%emt 0:00:04]} 3. Nc3 {[%emt 0:00:05]} e5 {[%emt 0:06:10]} 4. g3 {[%emt 0:00:05]} exd4 {[%emt 0:00:04]} 5. Qxd4 {[%emt 0:00:03]} Nc6 {[%emt 0:00:07]} 6. Qd2 {[%emt 0:00:04]} a5 {[%emt 0:00:06]} 7. Bg2 {[%emt 0:00:09]} a4 {[%emt 0:00:06]} 8. Nh3 {[%emt 0:00:15]} Ne5 {[%emt 0:00:12]} 9. O-O {[%emt 0:00:42]} Nxc4 {[%emt 0:00:07]} 10. Qc2 {[%emt 0:00:04]} Ne5 {[%emt 0:00:27]} 11. Nxa4 {[%emt 0:00:09]} Be7 {[%emt 0:00:06]} 12. b3 {[%emt 0:00:14]} O-O {[%emt 0:00:10]} 13. Bb2 {[%emt 0:00:04]} c6 {[%emt 0:00:11]} 14. Nf4 {[%emt 0:00:10]} Ng6 {[%emt 0:00:13]} 15. Nxg6 {[%emt 0:00:27]} hxg6 {[%emt 0:00:04]} 16. e4 {[%emt 0:00:08]} Qa5 {[%emt 0:00:17]} 17. h3 {[%emt 0:00:12]} Be6 {[%emt 0:00:44]} 18. Rfe1 {[%emt 0:00:05]} Rfd8 {[%emt 0:00:09]} 19. Rad1 {[%emt 0:01:10]} b5 {[%emt 0:00:10]} 20. Nc3 {[%emt 0:00:04]} Qb6 {[%emt 0:00:18]} 21. Rd2 {[%emt 0:01:29]} d5 {[%emt 0:00:23]} 22. exd5 {[%emt 0:00:20]} cxd5 {[%emt 0:00:04]} 23. Qd3 {[%emt 0:00:49]} Bb4 {[%emt 0:00:12]} 24. a3 {[%emt 0:00:04]} Bxa3 {[%emt 0:00:23]} 25. g4 {[%emt 0:01:57]} Bxb2 {[%emt 0:00:34]} 26. Rxb2 {[%emt 0:00:03]} Rab8 {[%emt 0:00:04]} 27. Ne2 {[%emt 0:00:05]} d4 {[%emt 0:00:11]} 28. Rd1 {[%emt 0:00:05]} Nd5 {[%emt 0:00:11]} 29. Nxd4 {[%emt 0:00:20]} Nf4 {[%emt 0:00:07]} 30. Qe3 {[%emt 0:00:04]} Nxg2 {[%emt 0:00:05]} 31. Kxg2 {[%emt 0:00:03]} Bd5+ {[%emt 0:00:05]} 32. Kg1 {[%emt 0:00:07]} Ba8 {[%emt 0:00:06]} 33. Rbd2 {[%emt 0:00:16]} Re8 {[%emt 0:00:07]} 34. Qf4 {[%emt 0:00:05]} b4 {[%emt 0:00:13]} 35. Kh2 {[%emt 0:00:08]} Rbc8 {[%emt 0:00:07]} 36. f3 {[%emt 0:00:15]} Rc3 {[%emt 0:00:06]} 37. Kg3 {[%emt 0:00:06]} Qc5 {[%emt 0:00:07]} 38. h4 {[%emt 0:00:06]} Bd5 {[%emt 0:00:20]} 39. Rd3 {[%emt 0:00:03]} Bb7 {[%emt 0:00:08]} 40. R1d2 {[%emt 0:00:20]} Ba6 {[%emt 0:00:06]} 41. Rxc3 {[%emt 0:00:04]} bxc3 {[%emt 0:00:03]} 42. Rc2 {[%emt 0:00:12]} Rd8 {[%emt 0:00:10]} 43. Qe3 {[%emt 0:00:10]} Qxd4 {[%emt 0:00:06]} 44. Qxd4 {[%emt 0:00:07]} Rxd4 {[%emt 0:00:03]} 45. Rxc3 {[%emt 0:00:04]} Rb4 {[%emt 0:00:07]} 46. Kf2 {[%emt 0:00:06]} Bb7 {[%emt 0:00:05]} 47. Rd3 {[%emt 0:00:04]} Kf8 {[%emt 0:00:04]} 48. Ke3 {[%emt 0:00:04]} Ke7 {[%emt 0:00:05]} 49. Kd2 {[%emt 0:00:03]} Bc8 {[%emt 0:00:04]} 50. Kc3 {[%emt 0:00:04]} Rb7 {[%emt 0:00:03]} 51. b4 {[%emt 0:00:04]} Be6 {[%emt 0:00:05]} 52. Re3 {[%emt 0:00:04]} Rc7+ {[%emt 0:00:04]} 53. Kd3 {[%emt 0:00:06]} Rd7+ {[%emt 0:00:05]} 54. Kc3 {[%emt 0:00:04]} Rc7+ {[%emt 0:00:03]} 55. Kd3 {[%emt 0:00:03]} Rd7+ {[%emt 0:00:04]} 56. Ke2 {[%emt 0:00:04]} Rb7 {[%emt 0:00:04]} 57. Re4 {[%emt 0:00:03]} Kd6 {[%emt 0:00:03]} 58. Ke3 {[%emt 0:00:04]} Bd5 {[%emt 0:00:06]} 59. Rd4 {[%emt 0:00:04]} Ra7 {[%emt 0:00:03]} 60. Rd3 {[%emt 0:00:11]} Rb7 {[%emt 0:00:04]} 61. Rd4 {[%emt 0:00:04]} Ra7 {[%emt 0:00:04]} 62. Rd3 {[%emt 0:00:09]} Ra4 {[%emt 0:00:04]} 63. Rd4 {[%emt 0:00:05]} Ra3+ {[%emt 0:00:04]} 64. Ke2 {[%emt 0:00:04]} Ke5 {[%emt 0:00:07]} 65. Rd2 {[%emt 0:00:05]} Bxf3+ {[%emt 0:00:04]} 66. Kf2 {[%emt 0:00:04]} Bxg4 {[%emt 0:00:04]} 67. Rb2 {[%emt 0:00:04]} Be6 {[%emt 0:00:06]} 68. b5 {[%emt 0:00:04]} Ra2 {[%emt 0:00:03]} 0-1

[Event "AI Cup Div-3 2023"]
[Site "Online"]
[Date "2023.09.26"]
[Round "52.3"]
[White "Kovalev, Vladislav"]
[Black "Paravyan, David"]
[Result "1-0"]
[Annotator "ChessBase"]
[ECO "A07"]
[WhiteElo "2582"]
[BlackElo "2599"]
[PlyCount "77"]
[EventDate "2023.09.18"]
[EventType "k.o."]
[EventCountry "NET"]
[SourceTitle "playchess.com"]
[Source "ChessBase"]
[SourceQuality "1"]
[TimeControl "900+3"]

1. Nf3 {[%emt 0:00:10]} d5 {[%emt 0:00:08]} 2. g3 {[%emt 0:00:07]} Nf6 {[%emt 0:03:07]} 3. Bg2 {[%emt 0:00:04]} e6 {[%emt 0:00:04]} 4. O-O {[%emt 0:00:05]} Be7 {[%emt 0:00:03]} 5. d3 {[%emt 0:00:03]} O-O {[%emt 0:00:05]} 6. Nbd2 {[%emt 0:00:04]} Nc6 {[%emt 0:00:13]} 7. e4 {[%emt 0:00:11]} dxe4 {[%emt 0:00:04]} 8. dxe4 {[%emt 0:00:03]} e5 {[%emt 0:00:05]} 9. Qe2 {[%emt 0:00:30]} Be6 {[%emt 0:00:06]} 10. c3 {[%emt 0:00:08]} Nd7 {[%emt 0:00:08]} 11. Nc4 {[%emt 0:00:17]} a5 {[%emt 0:00:15]} 12. Rd1 {[%emt 0:00:11]} f6 {[%emt 0:00:35]} 13. Nh4 {[%emt 0:00:29]} g6 {[%emt 0:00:08]} 14. Ne3 {[%emt 0:00:14]} Bc5 {[%emt 0:00:20]} 15. Nd5 {[%emt 0:00:17]} Rf7 {[%emt 0:00:18]} 16. Bf3 {[%emt 0:01:02]} Ne7 {[%emt 0:00:15]} 17. Ne3 {[%emt 0:00:29]} Qc8 {[%emt 0:00:28]} 18. Bg4 {[%emt 0:00:34]} Nb6 {[%emt 0:00:30]} 19. Bxe6 {[%emt 0:00:20]} Qxe6 {[%emt 0:00:04]} 20. Ng4 {[%emt 0:00:41]} Kh8 {[%emt 0:00:06]} 21. Be3 {[%emt 0:00:35]} Bxe3 {[%emt 0:00:16]} 22. Nxe3 {[%emt 0:00:03]} Rff8 {[%emt 0:00:05]} 23. c4 {[%emt 0:00:41]} Rad8 {[%emt 0:01:49]} 24. Nd5 {[%emt 0:00:09]} Rd7 {[%emt 0:00:12]} 25. b3 {[%emt 0:00:07]} Rfd8 {[%emt 0:00:36]} 26. Nxc7 {[%emt 0:00:15]} Qc6 {[%emt 0:01:20]} 27. Nd5 {[%emt 0:00:07]} Nbxd5 {[%emt 0:00:31]} 28. cxd5 {[%emt 0:00:31]} Qb6 {[%emt 0:00:05]} 29. Ng2 {[%emt 0:00:27]} Qb4 {[%emt 0:00:26]} 30. Rac1 {[%emt 0:00:14]} Rc8 {[%emt 0:00:15]} 31. Qg4 {[%emt 0:01:47]} Rxc1 {[%emt 0:01:28]} 32. Rxc1 {[%emt 0:00:03]} Rxd5 {[%emt 0:00:12]} 33. Rc4 {[%emt 0:02:08]} f5 {[%emt 0:01:06]} 34. Qf3 {[%emt 0:00:10]} Qd2 {[%emt 0:00:26]} 35. exd5 {[%emt 0:00:10]} Nxd5 {[%emt 0:00:03]} 36. Ne3 {[%emt 0:00:50]} Qe1+ {[%emt 0:00:05]} 37. Kg2 {[%emt 0:00:03]} e4 {[%emt 0:00:04]} 38. Rxe4 {[%emt 0:00:05]} fxe4 {[%emt 0:00:06]} 39. Qf8# {[%emt 0:00:05]} 1-0